[Event "Titled Tuesday Blitz May 17 Late 2022"]
[White "Holt, Conrad"]
[Black "Milchev, Nikolay"]
[WhiteFideId "2034387"]
[BlackFideId "2906090"]
[WhiteElo "2586"]
[BlackElo "2449"]
[Result "1-0"]
[Round "01"]
[TimeControl "180+1"]
[Date "2022.05.17"]
[WhiteClock "0:00:18"]
[BlackClock "0:00:24"]

1. d4 {[%clk 0:02:58]}  Nf6 {[%clk 0:02:59]} 2. c4 {[%clk 0:02:58]}  g6 {[%clk 0:03:00]} 3. Nc3 {[%clk 0:02:57]}  Bg7 {[%clk 0:03:01]} 4. e4 {[%clk 0:02:57]}  O-O {[%clk 0:03:01]} 5. Nf3 {[%clk 0:02:57]}  d6 {[%clk 0:03:02]} 6. h3 {[%clk 0:02:57]}  c5 {[%clk 0:03:02]} 7. d5 {[%clk 0:02:57]}  b5 {[%clk 0:03:02]} 8. cxb5 {[%clk 0:02:56]}  a6 {[%clk 0:03:03]} 9. a4 {[%clk 0:02:56]}  Qa5 {[%clk 0:03:03]} 10. Nd2 {[%clk 0:02:54]}  axb5 {[%clk 0:02:57]} 11. Bxb5 {[%clk 0:02:53]}  Ba6 {[%clk 0:02:58]} 12. Ra3 {[%clk 0:02:53]}  Nbd7 {[%clk 0:02:40]} 13. Nc4 {[%clk 0:02:44]}  Qc7 {[%clk 0:02:40]} 14. O-O {[%clk 0:02:43]}  Rfb8 {[%clk 0:02:37]} 15. Qe2 {[%clk 0:02:37]}  Ne8 {[%clk 0:02:11]} 16. Bxa6 {[%clk 0:02:15]}  Rxa6 {[%clk 0:02:10]} 17. Ne5 {[%clk 0:02:14]}  Nxe5 {[%clk 0:01:57]} 18. Qxa6 {[%clk 0:02:13]}  c4 {[%clk 0:01:57]} 19. Nb5 {[%clk 0:02:11]}  Qc5 {[%clk 0:01:45]} 20. Qa7 {[%clk 0:02:08]}  Qxa7 {[%clk 0:01:24]} 21. Nxa7 {[%clk 0:02:08]}  Nd3 {[%clk 0:01:25]} 22. Nc6 {[%clk 0:02:07]}  Rb7 {[%clk 0:01:25]} 23. Na5 {[%clk 0:01:54]}  Rc7 {[%clk 0:01:13]} 24. Nxc4 {[%clk 0:01:52]}  Nxc1 {[%clk 0:01:13]} 25. Rxc1 {[%clk 0:01:51]}  Bxb2 {[%clk 0:01:12]} 26. Nxb2 {[%clk 0:01:47]}  Rxc1+ {[%clk 0:01:12]} 27. Kh2 {[%clk 0:01:48]}  Nc7 {[%clk 0:01:11]} 28. Kg3 {[%clk 0:01:32]}  Na6 {[%clk 0:01:10]} 29. Nd3 {[%clk 0:01:31]}  Rc2 {[%clk 0:01:06]} 30. Kf3 {[%clk 0:01:29]}  Kf8 {[%clk 0:00:59]} 31. Ke3 {[%clk 0:01:26]}  Ke8 {[%clk 0:01:00]} 32. Rb3 {[%clk 0:01:19]}  Ra2 {[%clk 0:01:00]} 33. Nb2 {[%clk 0:01:14]}  Nc5 {[%clk 0:00:58]} 34. Rb4 {[%clk 0:01:12]}  Ra3+ {[%clk 0:00:58]} 35. Kd4 {[%clk 0:01:05]}  Kd7 {[%clk 0:00:51]} 36. e5 {[%clk 0:00:43]}  Kc7 {[%clk 0:00:49]} 37. Kc4 {[%clk 0:00:37]}  f6 {[%clk 0:00:36]} 38. exd6+ {[%clk 0:00:33]}  exd6 {[%clk 0:00:36]} 39. Kb5 {[%clk 0:00:33]}  Kb7 {[%clk 0:00:34]} 40. Nc4 {[%clk 0:00:30]}  Rc3 {[%clk 0:00:16]} 41. Nxd6+ {[%clk 0:00:29]}  Kc7 {[%clk 0:00:17]} 42. Ne8+ {[%clk 0:00:26]}  Kd7 {[%clk 0:00:17]} 43. Nxf6+ {[%clk 0:00:26]}  Kd6 {[%clk 0:00:18]} 44. Ne4+ {[%clk 0:00:25]}  Nxe4 {[%clk 0:00:17]} 45. Rxe4 {[%clk 0:00:25]}  Kxd5 {[%clk 0:00:18]} 46. Re2 {[%clk 0:00:20]}  Rb3+ {[%clk 0:00:18]} 47. Ka6 {[%clk 0:00:21]}  Kc6 {[%clk 0:00:17]} 48. Rc2+ {[%clk 0:00:20]}  Kd7 {[%clk 0:00:17]} 49. a5 {[%clk 0:00:21]}  Rb4 {[%clk 0:00:18]} 50. Ka7 {[%clk 0:00:20]}  Rb3 {[%clk 0:00:18]} 51. a6 {[%clk 0:00:21]}  Rb4 {[%clk 0:00:18]} 52. Ka8 {[%clk 0:00:21]}  Kd8 {[%clk 0:00:19]} 53. Rc3 {[%clk 0:00:17]}  Kd7 {[%clk 0:00:19]} 54. Rf3 {[%clk 0:00:17]}  Kc7 {[%clk 0:00:19]} 55. Rf7+ {[%clk 0:00:17]}  Kc8 {[%clk 0:00:20]} 56. Rxh7 {[%clk 0:00:16]}  Rb2 {[%clk 0:00:20]} 57. Rf7 {[%clk 0:00:16]}  g5 {[%clk 0:00:20]} 58. Ka7 {[%clk 0:00:16]}  Rb3 {[%clk 0:00:20]} 59. Rf5 {[%clk 0:00:16]}  Rb2 {[%clk 0:00:20]} 60. Rxg5 {[%clk 0:00:16]}  Rxf2 {[%clk 0:00:21]} 61. Kb6 {[%clk 0:00:16]}  Rf7 {[%clk 0:00:20]} 62. a7 {[%clk 0:00:16]}  Rf6+ {[%clk 0:00:21]} 63. Kb5 {[%clk 0:00:16]}  Kb7 {[%clk 0:00:22]} 64. h4 {[%clk 0:00:16]}  Kxa7 {[%clk 0:00:22]} 65. h5 {[%clk 0:00:17]}  Kb7 {[%clk 0:00:22]} 66. g4 {[%clk 0:00:17]}  Rf7 {[%clk 0:00:22]} 67. Kc5 {[%clk 0:00:17]}  Rf4 {[%clk 0:00:23]} 68. Kd5 {[%clk 0:00:17]}  Kc8 {[%clk 0:00:24]} 69. Ke5 {[%clk 0:00:17]}  Kd8 {[%clk 0:00:25]} 70. Kxf4 {[%clk 0:00:17]}  Ke7 {[%clk 0:00:25]} 71. h6 {[%clk 0:00:18]}  Kf6 {[%clk 0:00:26]} 72. h7 {[%clk 0:00:18]}  Kf7 {[%clk 0:00:27]} 73. h8=Q {[%clk 0:00:18]}  Ke6 {[%clk 0:00:28]} 74. Qh6+ {[%clk 0:00:18]}  Kf7 {[%clk 0:00:24]} 75. Rg7+ {[%clk 0:00:18]} 1-0


[Site "https://www.chess.com"]

[Event "Titled Tuesday Blitz May 17 Late 2022"]
[White "Kim, Sergey"]
[Black "Keymer, Vincent"]
[WhiteFideId "13700570"]
[BlackFideId "12940690"]
[WhiteElo "2510"]
[BlackElo "2548"]
[Result "0-1"]
[Round "01"]
[TimeControl "180+1"]
[Date "2022.05.17"]
[WhiteClock "0:00:02"]
[BlackClock "0:00:07"]

1. d4 {[%clk 0:03:00]}  Nf6 {[%clk 0:02:59]} 2. c4 {[%clk 0:03:01]}  e6 {[%clk 0:02:59]} 3. Nc3 {[%clk 0:03:01]}  Bb4 {[%clk 0:02:59]} 4. Qc2 {[%clk 0:03:01]}  c5 {[%clk 0:02:56]} 5. dxc5 {[%clk 0:03:00]}  O-O {[%clk 0:02:57]} 6. Nf3 {[%clk 0:03:00]}  Na6 {[%clk 0:02:56]} 7. Bd2 {[%clk 0:03:00]}  Nxc5 {[%clk 0:02:46]} 8. e3 {[%clk 0:03:00]}  d6 {[%clk 0:02:35]} 9. Be2 {[%clk 0:03:00]}  e5 {[%clk 0:02:32]} 10. O-O {[%clk 0:03:00]}  h6 {[%clk 0:02:23]} 11. Rfd1 {[%clk 0:02:59]}  Qe7 {[%clk 0:02:11]} 12. Be1 {[%clk 0:02:57]}  Bxc3 {[%clk 0:01:52]} 13. Bxc3 {[%clk 0:02:55]}  a5 {[%clk 0:01:53]} 14. b3 {[%clk 0:02:52]}  Nfe4 {[%clk 0:01:50]} 15. Bb2 {[%clk 0:02:46]}  Bf5 {[%clk 0:01:50]} 16. Qc1 {[%clk 0:02:40]}  Rfc8 {[%clk 0:01:46]} 17. Nd2 {[%clk 0:02:34]}  Nf6 {[%clk 0:01:46]} 18. Nf3 {[%clk 0:02:30]}  b5 {[%clk 0:01:46]} 19. Qd2 {[%clk 0:02:25]}  Nfe4 {[%clk 0:01:45]} 20. Qe1 {[%clk 0:02:23]}  b4 {[%clk 0:01:30]} 21. Rac1 {[%clk 0:02:04]}  Rcb8 {[%clk 0:01:21]} 22. Nd2 {[%clk 0:02:01]}  Nf6 {[%clk 0:01:20]} 23. Nf3 {[%clk 0:01:52]}  a4 {[%clk 0:01:20]} 24. Nd2 {[%clk 0:01:28]}  Ra7 {[%clk 0:01:05]} 25. Ra1 {[%clk 0:01:24]}  a3 {[%clk 0:01:02]} 26. Bc1 {[%clk 0:01:23]}  Bc2 {[%clk 0:01:02]} 27. Nf3 {[%clk 0:01:20]}  Bxd1 {[%clk 0:01:02]} 28. Qxd1 {[%clk 0:01:20]}  Nfe4 {[%clk 0:01:01]} 29. Bd2 {[%clk 0:01:17]}  Nxd2 {[%clk 0:00:57]} 30. Nxd2 {[%clk 0:01:14]}  Rd7 {[%clk 0:00:58]} 31. Qc2 {[%clk 0:01:11]}  d5 {[%clk 0:00:51]} 32. cxd5 {[%clk 0:01:05]}  Rxd5 {[%clk 0:00:52]} 33. Bf3 {[%clk 0:01:03]}  Rd7 {[%clk 0:00:48]} 34. Nc4 {[%clk 0:01:01]}  e4 {[%clk 0:00:46]} 35. Be2 {[%clk 0:01:01]}  Rbd8 {[%clk 0:00:46]} 36. h3 {[%clk 0:00:58]}  Qf6 {[%clk 0:00:46]} 37. Rc1 {[%clk 0:00:57]}  Nd3 {[%clk 0:00:46]} 38. Rf1 {[%clk 0:00:55]}  Qc3 {[%clk 0:00:44]} 39. Qb1 {[%clk 0:00:47]}  g6 {[%clk 0:00:36]} 40. Nb6 {[%clk 0:00:35]}  Rd6 {[%clk 0:00:33]} 41. Nc4 {[%clk 0:00:34]}  Rd5 {[%clk 0:00:34]} 42. f3 {[%clk 0:00:32]}  exf3 {[%clk 0:00:32]} 43. Bxf3 {[%clk 0:00:32]}  Rf5 {[%clk 0:00:28]} 44. e4 {[%clk 0:00:30]}  Rf6 {[%clk 0:00:23]} 45. Qd1 {[%clk 0:00:25]}  Rfd6 {[%clk 0:00:19]} 46. Qe2 {[%clk 0:00:24]}  Ne5 {[%clk 0:00:19]} 47. Nxd6 {[%clk 0:00:19]}  Rxd6 {[%clk 0:00:20]} 48. Qb5 {[%clk 0:00:17]}  Kg7 {[%clk 0:00:18]} 49. Qe8 {[%clk 0:00:16]}  Rf6 {[%clk 0:00:18]} 50. Qb5 {[%clk 0:00:09]}  Qb2 {[%clk 0:00:17]} 51. Qe2 {[%clk 0:00:08]}  Rd6 {[%clk 0:00:14]} 52. Qe3 {[%clk 0:00:06]}  Rd2 {[%clk 0:00:11]} 53. Qf4 {[%clk 0:00:02]}  Qd4+ {[%clk 0:00:09]} 54. Kh1 {[%clk 0:00:02]}  Rxa2 {[%clk 0:00:07]} 0-1


[Site "https://www.chess.com"]

[Event "Titled Tuesday Blitz May 17 Late 2022"]
[White "Krishnan, Varun"]
[Black "Xiong, Jeffery"]
[WhiteFideId "5054508"]
[BlackFideId "2047640"]
[WhiteElo "2543"]
[BlackElo "2727"]
[Result "1-0"]
[Round "01"]
[TimeControl "180+1"]
[Date "2022.05.17"]
[WhiteClock "0:00:15"]
[BlackClock "0:00:04"]

1. e4 {[%clk 0:02:51]}  c6 {[%clk 0:02:59]} 2. d4 {[%clk 0:02:47]}  d5 {[%clk 0:02:59]} 3. exd5 {[%clk 0:02:48]}  cxd5 {[%clk 0:03:00]} 4. c4 {[%clk 0:02:46]}  Nf6 {[%clk 0:03:00]} 5. Nc3 {[%clk 0:02:47]}  g6 {[%clk 0:03:00]} 6. Qb3 {[%clk 0:02:46]}  Bg7 {[%clk 0:03:01]} 7. cxd5 {[%clk 0:02:46]}  O-O {[%clk 0:03:02]} 8. Be2 {[%clk 0:02:46]}  Na6 {[%clk 0:03:01]} 9. Bf3 {[%clk 0:02:46]}  b5 {[%clk 0:03:01]} 10. Nge2 {[%clk 0:02:28]}  Rb8 {[%clk 0:03:01]} 11. O-O {[%clk 0:02:24]}  Rb6 {[%clk 0:02:55]} 12. Bd2 {[%clk 0:02:14]}  Nc7 {[%clk 0:02:50]} 13. Ne4 {[%clk 0:02:03]}  Nfxd5 {[%clk 0:02:30]} 14. Nc5 {[%clk 0:01:59]}  b4 {[%clk 0:02:22]} 15. Nf4 {[%clk 0:01:44]}  Nxf4 {[%clk 0:02:20]} 16. Bxf4 {[%clk 0:01:45]}  Bxd4 {[%clk 0:01:41]} 17. Rfd1 {[%clk 0:01:23]}  Nb5 {[%clk 0:01:42]} 18. Qxb4 {[%clk 0:01:09]}  Re8 {[%clk 0:00:40]} 19. a4 {[%clk 0:00:44]}  a5 {[%clk 0:00:35]} 20. Qc4 {[%clk 0:00:37]}  e5 {[%clk 0:00:25]} 21. axb5 {[%clk 0:00:32]}  Qe7 {[%clk 0:00:26]} 22. Be3 {[%clk 0:00:28]}  Bxe3 {[%clk 0:00:15]} 23. fxe3 {[%clk 0:00:29]}  Bf5 {[%clk 0:00:14]} 24. Bc6 {[%clk 0:00:27]}  Rc8 {[%clk 0:00:13]} 25. e4 {[%clk 0:00:27]}  Bg4 {[%clk 0:00:13]} 26. Rf1 {[%clk 0:00:23]}  h5 {[%clk 0:00:06]} 27. Rac1 {[%clk 0:00:23]}  h4 {[%clk 0:00:06]} 28. h3 {[%clk 0:00:23]}  Bh5 {[%clk 0:00:06]} 29. Rxf7 {[%clk 0:00:16]}  Qg5 {[%clk 0:00:04]} 30. Rf5+ {[%clk 0:00:15]} 1-0


[Site "https://www.chess.com"]

[Event "Titled Tuesday Blitz May 17 Late 2022"]
[White "Manukyan, Sargis A."]
[Black "Pap, Gyula"]
[WhiteFideId "13303970"]
[BlackFideId "725323"]
[WhiteElo "2187"]
[BlackElo "2553"]
[Result "0-1"]
[Round "01"]
[TimeControl "180+1"]
[Date "2022.05.17"]
[WhiteClock "0:00:01"]
[BlackClock "0:00:04"]

1. d4 {[%clk 0:02:58]}  d5 {[%clk 0:02:59]} 2. e3 {[%clk 0:02:58]}  Nf6 {[%clk 0:02:59]} 3. Nf3 {[%clk 0:02:59]}  Bg4 {[%clk 0:02:55]} 4. Be2 {[%clk 0:02:57]}  Nbd7 {[%clk 0:02:50]} 5. O-O {[%clk 0:02:57]}  e6 {[%clk 0:02:45]} 6. b3 {[%clk 0:02:57]}  Bd6 {[%clk 0:02:40]} 7. Bb2 {[%clk 0:02:57]}  O-O {[%clk 0:02:22]} 8. Nbd2 {[%clk 0:02:55]}  c5 {[%clk 0:02:15]} 9. dxc5 {[%clk 0:02:27]}  Nxc5 {[%clk 0:02:12]} 10. c4 {[%clk 0:02:27]}  dxc4 {[%clk 0:02:00]} 11. Nxc4 {[%clk 0:02:28]}  Be7 {[%clk 0:02:00]} 12. Qxd8 {[%clk 0:02:26]}  Rfxd8 {[%clk 0:02:00]} 13. Rfd1 {[%clk 0:02:27]}  Rxd1+ {[%clk 0:01:39]} 14. Rxd1 {[%clk 0:02:14]}  Rc8 {[%clk 0:01:40]} 15. h3 {[%clk 0:02:05]}  Bf5 {[%clk 0:01:38]} 16. Nd4 {[%clk 0:02:04]}  Bg6 {[%clk 0:01:33]} 17. Bf3 {[%clk 0:02:04]}  Be4 {[%clk 0:01:33]} 18. Bxe4 {[%clk 0:01:57]}  Ncxe4 {[%clk 0:01:28]} 19. Nb5 {[%clk 0:01:52]}  a6 {[%clk 0:01:20]} 20. Bxf6 {[%clk 0:01:48]}  gxf6 {[%clk 0:01:18]} 21. Nd4 {[%clk 0:01:33]}  f5 {[%clk 0:01:07]} 22. Na5 {[%clk 0:01:26]}  Rc7 {[%clk 0:01:05]} 23. g4 {[%clk 0:01:12]}  Bh4 {[%clk 0:00:50]} 24. f3 {[%clk 0:00:44]}  Nf2 {[%clk 0:00:49]} 25. Rd2 {[%clk 0:00:43]}  Nxh3+ {[%clk 0:00:49]} 26. Kg2 {[%clk 0:00:44]}  fxg4 {[%clk 0:00:49]} 27. fxg4 {[%clk 0:00:40]}  Ng5 {[%clk 0:00:50]} 28. Nf3 {[%clk 0:00:40]}  Nxf3 {[%clk 0:00:49]} 29. Kxf3 {[%clk 0:00:41]}  Bg5 {[%clk 0:00:41]} 30. Nc4 {[%clk 0:00:39]}  Kg7 {[%clk 0:00:40]} 31. Rh2 {[%clk 0:00:35]}  h6 {[%clk 0:00:39]} 32. Nd6 {[%clk 0:00:32]}  Rd7 {[%clk 0:00:32]} 33. Ne4 {[%clk 0:00:31]}  Rd5 {[%clk 0:00:24]} 34. Rc2 {[%clk 0:00:30]}  Rd7 {[%clk 0:00:18]} 35. Rc5 {[%clk 0:00:28]}  Kg6 {[%clk 0:00:18]} 36. Rc8 {[%clk 0:00:26]}  Rd3 {[%clk 0:00:12]} 37. Rc3 {[%clk 0:00:18]}  Rxc3 {[%clk 0:00:10]} 38. Nxc3 {[%clk 0:00:16]}  f5 {[%clk 0:00:10]} 39. gxf5+ {[%clk 0:00:12]}  exf5 {[%clk 0:00:11]} 40. e4 {[%clk 0:00:11]}  fxe4+ {[%clk 0:00:10]} 41. Nxe4 {[%clk 0:00:12]}  Be7 {[%clk 0:00:09]} 42. Kf4 {[%clk 0:00:11]}  h5 {[%clk 0:00:08]} 43. Nc3 {[%clk 0:00:10]}  Bd6+ {[%clk 0:00:07]} 44. Kf3 {[%clk 0:00:10]}  Kf5 {[%clk 0:00:07]} 45. Nd5 {[%clk 0:00:11]}  Ke6 {[%clk 0:00:05]} 46. Ne3 {[%clk 0:00:11]}  Be7 {[%clk 0:00:03]} 47. Ng2 {[%clk 0:00:11]}  h4 {[%clk 0:00:03]} 48. Ke4 {[%clk 0:00:10]}  Kd6 {[%clk 0:00:03]} 49. Nf4 {[%clk 0:00:10]}  Kc6 {[%clk 0:00:02]} 50. a4 {[%clk 0:00:09]}  Bd6 {[%clk 0:00:02]} 51. Nh3 {[%clk 0:00:09]}  Kc5 {[%clk 0:00:03]} 52. Kd3 {[%clk 0:00:07]}  Kb4 {[%clk 0:00:03]} 53. Kc2 {[%clk 0:00:08]}  Kc5 {[%clk 0:00:02]} 54. Kc3 {[%clk 0:00:07]}  Be5+ {[%clk 0:00:02]} 55. Kd3 {[%clk 0:00:07]}  Kb4 {[%clk 0:00:03]} 56. Kc2 {[%clk 0:00:08]}  Bg3 {[%clk 0:00:03]} 57. Ng5 {[%clk 0:00:08]}  Be5 {[%clk 0:00:03]} 58. Nh3 {[%clk 0:00:08]}  Bd4 {[%clk 0:00:03]} 59. Ng5 {[%clk 0:00:08]}  Be3 {[%clk 0:00:04]} 60. Nh3 {[%clk 0:00:09]}  Bh6 {[%clk 0:00:04]} 61. Kb2 {[%clk 0:00:09]}  Kc5 {[%clk 0:00:03]} 62. Kc3 {[%clk 0:00:10]}  Kd5 {[%clk 0:00:03]} 63. Kd3 {[%clk 0:00:10]}  a5 {[%clk 0:00:04]} 64. Nf2 {[%clk 0:00:09]}  Ke6 {[%clk 0:00:03]} 65. Nh3 {[%clk 0:00:09]}  Kf5 {[%clk 0:00:02]} 66. Nf2 {[%clk 0:00:09]}  Kf4 {[%clk 0:00:02]} 67. Ke2 {[%clk 0:00:08]}  b6 {[%clk 0:00:03]} 68. Nd3+ {[%clk 0:00:06]}  Kg3 {[%clk 0:00:03]} 69. Kf1 {[%clk 0:00:06]}  h3 {[%clk 0:00:04]} 70. Kg1 {[%clk 0:00:06]}  Bf8 {[%clk 0:00:03]} 71. Kh1 {[%clk 0:00:05]}  Bd6 {[%clk 0:00:03]} 72. Nc1 {[%clk 0:00:03]}  Kf3 {[%clk 0:00:04]} 73. Na2 {[%clk 0:00:04]}  Ke3 {[%clk 0:00:04]} 74. b4 {[%clk 0:00:03]}  axb4 {[%clk 0:00:04]} 75. Nc1 {[%clk 0:00:01]}  Kd2 {[%clk 0:00:04]} 0-1


[Site "https://www.chess.com"]

[Event "Titled Tuesday Blitz May 17 Late 2022"]
[White "Matlakov, Maxim"]
[Black "Manukyan, Artyom"]
[WhiteFideId "4168003"]
[BlackFideId "13305786"]
[WhiteElo "2669"]
[BlackElo "2034"]
[Result "0-1"]
[Round "01"]
[TimeControl "180+1"]
[Date "2022.05.17"]
[WhiteClock "0:01:44"]
[BlackClock "0:00:27"]

1. d4 {[%clk 0:02:58]}  d5 {[%clk 0:02:51]} 2. c4 {[%clk 0:02:58]}  e6 {[%clk 0:02:51]} 3. Nf3 {[%clk 0:02:59]}  Nf6 {[%clk 0:02:51]} 4. Bg5 {[%clk 0:02:59]}  Be7 {[%clk 0:02:48]} 5. e3 {[%clk 0:02:59]}  h6 {[%clk 0:02:47]} 6. Bxf6 {[%clk 0:02:57]}  Bxf6 {[%clk 0:02:48]} 7. Qc2 {[%clk 0:02:58]}  c5 {[%clk 0:02:33]} 8. cxd5 {[%clk 0:02:52]}  cxd4 {[%clk 0:02:31]} 9. Bb5+ {[%clk 0:02:40]}  Bd7 {[%clk 0:02:26]} 10. dxe6 {[%clk 0:02:20]}  Qa5+ {[%clk 0:01:21]} 11. Nbd2 {[%clk 0:02:20]}  Qxb5 {[%clk 0:01:12]} 12. exd7+ {[%clk 0:02:18]}  Qxd7 {[%clk 0:01:09]} 13. Qe4+ {[%clk 0:02:10]}  Qe7 {[%clk 0:01:04]} 14. Nxd4 {[%clk 0:02:07]}  Bxd4 {[%clk 0:01:03]} 15. Qxd4 {[%clk 0:02:07]}  O-O {[%clk 0:01:02]} 16. O-O {[%clk 0:02:07]}  Nc6 {[%clk 0:01:02]} 17. Qa4 {[%clk 0:02:07]}  Rfd8 {[%clk 0:01:02]} 18. Nf3 {[%clk 0:02:06]}  a6 {[%clk 0:00:57]} 19. Rac1 {[%clk 0:02:05]}  Qe6 {[%clk 0:00:53]} 20. Rfd1 {[%clk 0:02:02]}  Qf6 {[%clk 0:00:46]} 21. Qb3 {[%clk 0:02:01]}  Qe7 {[%clk 0:00:41]} 22. h3 {[%clk 0:01:54]}  a5 {[%clk 0:00:34]} 23. a3 {[%clk 0:01:53]}  a4 {[%clk 0:00:34]} 24. Qb4 {[%clk 0:01:50]}  Nxb4 {[%clk 0:00:32]} 25. axb4 {[%clk 0:01:45]}  Rxd1+ {[%clk 0:00:31]} 26. Rxd1 {[%clk 0:01:45]}  Rd8 {[%clk 0:00:31]} 27. Nd4 {[%clk 0:01:45]}  Qxb4 {[%clk 0:00:31]} 28. Rb1 {[%clk 0:01:45]}  Rxd4 {[%clk 0:00:29]} 29. exd4 {[%clk 0:01:45]}  a3 {[%clk 0:00:30]} 30. d5 {[%clk 0:01:44]}  a2 {[%clk 0:00:27]} 0-1


[Site "https://www.chess.com"]

[Event "Titled Tuesday Blitz May 17 Late 2022"]
[White "Melian, Juan Sebastian"]
[Black "Salem, A.R. Saleh"]
[WhiteFideId "3706575"]
[BlackFideId "9301348"]
[WhiteElo "1851"]
[BlackElo "2679"]
[Result "0-1"]
[Round "01"]
[TimeControl "180+1"]
[Date "2022.05.17"]
[WhiteClock "0:00:47"]
[BlackClock "0:00:31"]

1. e4 {[%clk 0:02:58]}  c5 {[%clk 0:02:59]} 2. b3 {[%clk 0:02:58]}  e5 {[%clk 0:02:51]} 3. Bb2 {[%clk 0:02:58]}  d6 {[%clk 0:02:52]} 4. Bb5+ {[%clk 0:02:55]}  Nd7 {[%clk 0:02:47]} 5. d3 {[%clk 0:02:55]}  Nf6 {[%clk 0:02:47]} 6. Nd2 {[%clk 0:02:54]}  a6 {[%clk 0:02:47]} 7. Bxd7+ {[%clk 0:02:53]}  Bxd7 {[%clk 0:02:48]} 8. Ne2 {[%clk 0:02:54]}  Nh5 {[%clk 0:02:36]} 9. O-O {[%clk 0:02:51]}  g5 {[%clk 0:02:31]} 10. Nc3 {[%clk 0:02:37]}  Nf4 {[%clk 0:02:29]} 11. Nd5 {[%clk 0:02:36]}  Nxd5 {[%clk 0:02:20]} 12. exd5 {[%clk 0:02:37]}  Bg7 {[%clk 0:02:19]} 13. Qh5 {[%clk 0:02:19]}  h6 {[%clk 0:02:16]} 14. f4 {[%clk 0:02:12]}  gxf4 {[%clk 0:02:07]} 15. Rxf4 {[%clk 0:02:12]}  O-O {[%clk 0:02:06]} 16. Rf2 {[%clk 0:02:03]}  f5 {[%clk 0:02:06]} 17. Raf1 {[%clk 0:02:03]}  b5 {[%clk 0:02:05]} 18. Nf3 {[%clk 0:02:01]}  f4 {[%clk 0:01:57]} 19. Nd2 {[%clk 0:01:53]}  Rf5 {[%clk 0:01:50]} 20. Qe2 {[%clk 0:01:50]}  Qf6 {[%clk 0:01:36]} 21. Ne4 {[%clk 0:01:44]}  Qg6 {[%clk 0:01:36]} 22. Kh1 {[%clk 0:01:43]}  Raf8 {[%clk 0:01:31]} 23. g3 {[%clk 0:01:34]}  fxg3 {[%clk 0:01:13]} 24. Nxg3 {[%clk 0:01:35]}  Rxf2 {[%clk 0:01:06]} 25. Rxf2 {[%clk 0:01:36]}  Rxf2 {[%clk 0:01:00]} 26. Qxf2 {[%clk 0:01:37]}  Bg4 {[%clk 0:00:53]} 27. Kg2 {[%clk 0:01:26]}  h5 {[%clk 0:00:51]} 28. h3 {[%clk 0:01:26]}  Bd1 {[%clk 0:00:40]} 29. Kf1 {[%clk 0:01:16]}  Bxc2 {[%clk 0:00:37]} 30. Ke1 {[%clk 0:01:01]}  Bxd3 {[%clk 0:00:36]} 31. Qe3 {[%clk 0:00:56]}  Bh6 {[%clk 0:00:35]} 32. Qf2 {[%clk 0:00:51]}  Bf4 {[%clk 0:00:33]} 33. Nf1 {[%clk 0:00:46]}  Qe4+ {[%clk 0:00:31]} 34. Kd1 {[%clk 0:00:46]}  Bxf1 {[%clk 0:00:31]} 35. Qxf1 {[%clk 0:00:47]}  Qb1+ {[%clk 0:00:31]} 0-1


[Site "https://www.chess.com"]

[Event "Titled Tuesday Blitz May 17 Late 2022"]
[White "Moskalenko, Alexander"]
[Black "Omariev, Maksim"]
[WhiteFideId "4155351"]
[BlackFideId "4193423"]
[WhiteElo "2434"]
[BlackElo "2491"]
[Result "1-0"]
[Round "01"]
[TimeControl "180+1"]
[Date "2022.05.17"]
[WhiteClock "0:02:28"]
[BlackClock "0:01:40"]

1. e4 {[%clk 0:02:56]}  h5 {[%clk 0:02:43]} 2. a4 {[%clk 0:02:53]}  h4 {[%clk 0:02:44]} 3. a5 {[%clk 0:02:52]}  c6 {[%clk 0:02:44]} 4. c4 {[%clk 0:02:51]}  d5 {[%clk 0:02:44]} 5. cxd5 {[%clk 0:02:50]}  cxd5 {[%clk 0:02:45]} 6. exd5 {[%clk 0:02:50]}  Qxd5 {[%clk 0:02:42]} 7. Nc3 {[%clk 0:02:47]}  Qh5 {[%clk 0:02:38]} 8. Be2 {[%clk 0:02:47]}  Qg6 {[%clk 0:02:35]} 9. Nf3 {[%clk 0:02:47]}  Qxg2 {[%clk 0:02:31]} 10. Rg1 {[%clk 0:02:48]}  Qh3 {[%clk 0:02:31]} 11. d4 {[%clk 0:02:45]}  Nf6 {[%clk 0:02:26]} 12. Qa4+ {[%clk 0:02:37]}  Bd7 {[%clk 0:02:19]} 13. Qb3 {[%clk 0:02:36]}  Bc6 {[%clk 0:02:11]} 14. d5 {[%clk 0:02:31]}  Nxd5 {[%clk 0:01:38]} 15. Nxd5 {[%clk 0:02:30]}  Bxd5 {[%clk 0:01:39]} 16. Qxd5 {[%clk 0:02:30]}  Nc6 {[%clk 0:01:40]} 17. Qxf7+ {[%clk 0:02:29]}  Kxf7 {[%clk 0:01:39]} 18. Ng5+ {[%clk 0:02:29]}  Kf6 {[%clk 0:01:40]} 19. Nxh3 {[%clk 0:02:30]}  e5 {[%clk 0:01:41]} 20. Bg5+ {[%clk 0:02:29]}  Kf5 {[%clk 0:01:41]} 21. Bg4+ {[%clk 0:02:28]}  Ke4 {[%clk 0:01:41]} 22. O-O-O {[%clk 0:02:28]}  Nxa5 {[%clk 0:01:40]} 23. Rge1# {[%clk 0:02:28]} 1-0


[Site "https://www.chess.com"]

[Event "Titled Tuesday Blitz May 17 Late 2022"]
[White "Msellek, Ilyass"]
[Black "Fedoseev, Vladimir"]
[WhiteFideId "675938"]
[BlackFideId "24130737"]
[WhiteElo "2221"]
[BlackElo "2726"]
[Result "0-1"]
[Round "01"]
[TimeControl "180+1"]
[Date "2022.05.17"]
[WhiteClock "0:00:05"]
[BlackClock "0:00:55"]

1. Nf3 {[%clk 0:02:56]}  d5 {[%clk 0:02:59]} 2. c4 {[%clk 0:02:54]}  d4 {[%clk 0:02:58]} 3. b4 {[%clk 0:02:46]}  c5 {[%clk 0:02:57]} 4. e3 {[%clk 0:02:43]}  dxe3 {[%clk 0:02:55]} 5. fxe3 {[%clk 0:02:41]}  cxb4 {[%clk 0:02:55]} 6. d4 {[%clk 0:02:38]}  Nf6 {[%clk 0:02:56]} 7. Bd3 {[%clk 0:02:37]}  g6 {[%clk 0:02:56]} 8. O-O {[%clk 0:02:35]}  Bg7 {[%clk 0:02:54]} 9. Nbd2 {[%clk 0:02:20]}  O-O {[%clk 0:02:53]} 10. Bb2 {[%clk 0:02:15]}  Nc6 {[%clk 0:02:44]} 11. Qe2 {[%clk 0:02:11]}  Bg4 {[%clk 0:02:24]} 12. d5 {[%clk 0:01:58]}  Nb8 {[%clk 0:02:19]} 13. e4 {[%clk 0:01:57]}  Nbd7 {[%clk 0:01:47]} 14. e5 {[%clk 0:01:41]}  Nh5 {[%clk 0:01:46]} 15. Qe3 {[%clk 0:01:40]}  e6 {[%clk 0:01:37]} 16. h3 {[%clk 0:01:33]}  Bxf3 {[%clk 0:01:36]} 17. Nxf3 {[%clk 0:01:33]}  exd5 {[%clk 0:01:28]} 18. cxd5 {[%clk 0:01:34]}  Nb6 {[%clk 0:01:27]} 19. d6 {[%clk 0:01:16]}  Nd5 {[%clk 0:01:11]} 20. Qd4 {[%clk 0:01:02]}  Nhf4 {[%clk 0:01:10]} 21. Bc4 {[%clk 0:00:45]}  Qb6 {[%clk 0:01:09]} 22. Rad1 {[%clk 0:00:45]}  Ne3 {[%clk 0:01:02]} 23. Qxb6 {[%clk 0:00:32]}  axb6 {[%clk 0:01:01]} 24. Bb3 {[%clk 0:00:32]}  Nxf1 {[%clk 0:00:58]} 25. Kxf1 {[%clk 0:00:31]}  Ne6 {[%clk 0:00:58]} 26. Ke2 {[%clk 0:00:05]}  Ra5 {[%clk 0:00:56]} 27. Rd5 {[%clk 0:00:05]}  Nf4+ {[%clk 0:00:55]} 0-1


[Site "https://www.chess.com"]